bitfinex/quotes_ETHUSD_20241023
["timestamp","ask_amount","ask_price","bid_price","bid_amount"]
[1729683410153,1.72561024,2582.6,2582.4,0.98031542]
[1729683410335,5.59782024,2582.5,2582.3,0.68194367]
[1729683410538,1.72561024,2582.5,2582.3,0.68194367]
[1729683410850,1.72561024,2582.4,2582.2,0.8064]
[1729683411020,3.87253,2582.3,2582.0,0.7914]
[1729683411222,1.72561024,2582.1,2582.0,0.19377882]
[1729683411429,3.9231,2582.5,2582.0,0.7914]
[1729683411623,9.52105024,2582.5,2582.0,0.98517882]
[1729683411827,1.72561024,2582.4,2582.0,0.98517882]
[1729683412180,5.64871024,2582.5,2582.1,0.19377417]
[1729683412457,5.64870024,2582.5,2582.1,0.19377417]
[1729683412956,9.52104024,2582.5,2582.1,0.19377417]
[1729683413160,9.52104024,2582.5,2582.0,0.7914]
[1729683413457,5.59798024,2582.4,2582.1,0.19377237]
[1729683413661,3.87237,2582.4,2582.0,0.7914]
[1729683413827,5.59798024,2582.4,2582.1,0.19377486]
[1729683414028,3.87253,2582.3,2582.0,0.7914]
[1729683414250,5.59798024,2582.4,2582.1,0.19377558]
[1729683414433,5.59798024,2582.4,2582.0,0.7914]
[1729683414434,3.87256,2582.3,2582.0,0.7914]
[1729683414645,3.87256,2582.3,2582.1,0.1937774]
[1729683414839,3.87256,2582.3,2582.0,0.7914]
[1729683415038,3.87256,2582.3,2582.1,0.19377656]
[1729683415240,3.87256,2582.3,2582.0,0.7914]
[1729683415550,3.87256,2582.3,2582.1,0.19377656]
[1729683415726,3.87256,2582.3,2582.0,0.7914]
[1729683415929,5.59817024,2582.3,2582.1,0.1937762]
[1729683416253,5.59817024,2582.3,2582.0,0.7914]
[1729683416564,5.59817024,2582.3,2582.1,0.19377724]
[1729683416768,5.59817024,2582.3,2582.0,0.7914]
[1729683416942,5.59817024,2582.3,2582.1,0.19378003]
[1729683417147,5.59817024,2582.3,2582.2,0.19377983]
[1729683417331,3.87289,2582.1,2581.9,0.2422207]
[1729683417533,1.72561024,2582.0,2581.9,0.2422207]
[1729683417839,1.72561024,2582.0,2581.9,0.1937904]
[1729683418439,5.59857024,2582.0,2581.9,0.1937904]
[1729683418878,5.59857024,2582.0,2581.6,0.8004]
[1729683419081,1.72561024,2581.9,2581.7,0.43605857]
[1729683419236,1.72561024,2581.9,2581.8,0.19380419]
[1729683419435,5.59872024,2581.9,2581.8,0.19380419]
[1729683419757,3.87333,2581.8,2581.5,0.24225299]
[1729683419957,3.87333,2581.8,2581.4,0.829]
[1729683419958,5.59894024,2581.8,2581.6,0.19381148]
[1729683420279,5.59875024,2581.9,2581.7,0.19381148]
[1729683420605,1.72561024,2582.0,2581.8,0.19381148]
[1729683420886,5.59844024,2582.1,2581.9,0.19381148]
[1729683421084,0.0508,2581.9,2581.5,0.07746639]
[1729683421287,5.59930024,2581.6,2581.5,0.06830641]
[1729683421458,3.87373,2581.5,2581.3,0.8239]
[1729683421659,1.72561024,2581.4,2581.3,0.8239]
[1729683421859,1.72561024,2581.4,2581.3,1.01773665]
[1729683422064,1.72561024,2581.4,2581.3,1.26003444]
[1729683422293,5.59947024,2581.4,2581.3,0.43613446]
[1729683422589,5.59947024,2581.4,2581.3,0.19383665]
[1729683423487,5.59947024,2581.4,2581.3,0.19385437]
[1729683423695,3.8741,2581.3,2580.9,0.8239]
[1729683423878,1.72561024,2581.1,2581.0,0.43617441]
[1729683424396,3.8741,2581.3,2581.0,0.43617441]
[1729683424596,7.44025095,2581.1,2580.8,0.24232547]
[1729683424896,7.44025095,2581.1,2580.9,0.19386912]
[1729683424897,3.92521,2581.1,2580.9,0.19386912]
[1729683425192,3.92521,2581.1,2581.0,0.19386912]
[1729683425343,3.87426,2581.2,2581.0,0.19386912]
[1729683425549,3.92468,2581.4,2581.0,0.7895]
[1729683425858,3.92468,2581.4,2581.1,0.19386542]
[1729683425859,3.87388,2581.4,2581.1,0.19386542]
[1729683426059,3.87388,2581.4,2581.0,0.7895]
[1729683426258,3.87388,2581.4,2581.1,0.19386307]
[1729683426462,3.87388,2581.4,2581.0,0.7895]
[1729683426664,3.87388,2581.4,2581.1,0.19386201]
[1729683426873,3.87402,2581.3,2581.0,0.7895]
[1729683427080,3.87402,2581.3,2581.1,0.19386388]
[1729683427277,3.87402,2581.3,2581.0,0.7895]
[1729683427496,3.87402,2581.3,2581.1,0.1938638]
[1729683427795,3.87402,2581.3,2581.0,0.7895]
[1729683428349,3.8743,2581.2,2581.0,0.7895]
[1729683428549,3.87432,2581.1,2580.7,0.24233398]
[1729683428761,3.87432,2581.1,2580.4,1.3051]
[1729683429479,3.87432,2581.1,2580.5,0.8298]
[1729683429695,3.87416,2581.2,2580.6,0.07749269]
[1729683429898,3.87416,2581.2,2580.7,0.8298]
[1729683430549,7.44004095,2581.3,2580.7,0.8298]
[1729683430550,7.44003095,2581.3,2580.7,0.8298]
[1729683430987,3.87417,2581.2,2580.7,0.8298]
[1729683431764,3.87402,2581.3,2580.7,0.8298]
[1729683431964,3.56594095,2581.5,2580.7,0.8298]
[1729683432168,3.87386,2581.4,2580.9,0.8298]
[1729683434572,7.38924095,2581.3,2580.9,0.8298]
[1729683434773,7.38953095,2581.1,2580.5,0.07748521]
[1729683434980,11.26394095,2581.1,2580.6,0.7681]
[1729683435286,3.87481,2580.8,2580.6,0.7681]
[1729683435489,3.51514095,2580.9,2580.6,0.7681]
[1729683435490,3.87491,2580.7,2580.6,0.7681]
[1729683436604,7.38982095,2580.9,2580.6,0.96199899]
[1729683436766,3.87477,2580.8,2580.6,0.7681]
[1729683437363,3.87477,2580.8,2580.7,0.19388965]
[1729683437602,3.87477,2580.8,2580.6,0.7681]
[1729683437902,7.38976095,2580.9,2580.6,0.7681]
[1729683438302,7.38976095,2580.9,2580.7,0.1938893]
[1729683438515,7.38976095,2580.9,2580.6,0.7681]
[1729683438722,7.38976095,2580.9,2580.7,0.19388927]
[1729683438883,7.38976095,2580.9,2580.6,0.7681]
[1729683439083,7.38976095,2580.9,2580.7,0.19388887]
[1729683439425,7.44056095,2580.9,2580.4,1.05746856]
[1729683439607,7.44056095,2580.9,2580.5,0.19389187]
[1729683439608,11.31529095,2580.9,2580.5,0.19389187]
[1729683439919,11.31529095,2580.9,2580.6,0.19389187]
[1729683440109,7.44056095,2580.9,2580.4,0.8151]
[1729683440310,7.44056095,2580.9,2580.5,0.19389569]
[1729683440606,7.44056095,2580.9,2580.6,0.19389569]
[1729683440807,7.44056095,2580.9,2580.5,0.2423657]
[1729683441026,3.87482,2580.8,2580.6,0.19389494]
[1729683441194,3.87482,2580.8,2580.4,1.05746868]
[1729683441391,3.87482,2580.8,2580.5,0.19389694]
[1729683441597,7.44057095,2580.9,2580.6,0.19389694]
[1729683441795,7.44057095,2580.9,2580.4,0.8151]
[1729683441995,7.44057095,2580.9,2580.5,0.19389334]
[1729683442312,7.44057095,2580.9,2580.6,0.19389334]
[1729683442627,3.87488,2580.8,2580.4,0.8151]
[1729683442980,3.87488,2580.8,2580.5,0.19390055]
[1729683443282,3.87488,2580.8,2580.6,0.19390055]
[1729683443492,3.87488,2580.8,2580.4,0.8151]
[1729683443692,3.87488,2580.8,2580.5,0.19389703]
[1729683443926,3.87488,2580.8,2580.6,0.19389703]
[1729683444084,3.87488,2580.8,2580.4,0.8151]
[1729683444287,3.87488,2580.8,2580.5,0.19389568]
[1729683444486,3.87488,2580.8,2580.6,0.19389568]
[1729683444783,3.56594095,2580.9,2580.5,0.24237105]
[1729683444982,3.56594095,2580.9,2580.4,0.8151]
[1729683444983,7.44055095,2580.9,2580.6,0.1938944]
[1729683445195,7.44055095,2580.9,2580.7,0.1938944]
[1729683445392,7.44055095,2580.9,2580.8,0.1938944]
[1729683448000,7.38975095,2580.9,2580.8,0.1938944]
[1729683448311,5.60580353,2580.9,2580.8,0.43625788]
[1729683450409,5.60580353,2580.9,2580.8,0.1938944]
[1729683451044,7.33699706,2580.9,2580.8,0.1938944]
[1729683451350,5.60580353,2580.9,2580.8,0.1938944]
[1729683451560,3.87485,2580.8,2580.4,0.88381399]
[1729683451719,1.73119353,2580.5,2580.4,0.88381399]
[1729683451923,1.73119353,2580.5,2580.4,1.32009275]
[1729683452548,1.73119353,2580.5,2580.4,1.25137876]
[1729683453257,1.73119353,2580.6,2580.4,1.25137876]
[1729683453565,3.87478,2580.8,2580.5,0.43627876]
[1729683453869,3.87478,2580.8,2580.6,0.43627876]
[1729683454169,3.87478,2580.8,2580.7,0.43627876]
[1729683454370,3.87447,2581.0,2580.7,0.43627876]
[1729683454675,1.73119353,2580.8,2580.5,0.06875895]
[1729683454828,1.73119353,2580.7,2580.6,0.43627171]
[1729683455169,1.73119353,2580.7,2580.4,0.8151]
[1729683455333,1.73119353,2580.7,2580.5,0.50505157]
[1729683455536,1.73119353,2580.7,2580.6,0.4362738]
[1729683457370,0.0508,2581.1,2580.6,0.4362738]
[1729683457670,1.73119353,2580.9,2580.7,0.4362738]
[1729683457877,1.73119353,2580.9,2580.8,0.4362738]
[1729683458749,1.73119353,2580.9,2580.8,0.43623634]
[1729683465984,1.73119353,2580.9,2580.8,0.43622966]
[1729683468099,1.73119353,2580.9,2580.8,0.19387985]
[1729683468907,3.87448,2581.0,2580.8,0.19387985]
[1729683469204,3.87448,2581.0,2580.7,0.8184]
[1729683469205,3.87448,2581.0,2580.9,0.19387985]
[1729683470296,5.60567353,2581.0,2580.9,0.19387985]
[1729683471889,3.87488,2580.8,2580.5,0.24236571]
[1729683472095,1.73119353,2580.6,2580.4,0.8063]
[1729683472271,1.73119353,2580.6,2580.5,0.43627156]
[1729683476819,1.73119353,2580.6,2580.5,0.43627383]
[1729683477021,1.73119353,2580.6,2580.5,0.43627279]
[1729683478820,3.87452,2581.0,2580.5,0.43627279]
[1729683478982,3.92519,2581.1,2580.6,1.26017279]
[1729683479316,1.73119353,2580.8,2580.7,0.43627279]
[1729683480294,1.73119353,2580.8,2580.6,0.8239]
[1729683480619,1.73119353,2580.8,2580.7,0.4362381]
[1729683482485,1.73119353,2580.8,2580.7,0.43624684]
[1729683482891,1.73119353,2580.8,2580.7,0.19388839]
[1729683483117,1.73119353,2580.8,2580.7,0.43624915]
[1729683483833,5.60595353,2580.8,2580.7,0.19388839]
[1729683484035,5.65675353,2580.8,2580.7,0.19388839]
[1729683484889,5.60595353,2580.8,2580.7,0.19388839]
[1729683486439,5.60595353,2580.8,2580.3,0.8238]
[1729683486733,1.73119353,2580.6,2580.4,0.43627234]
[1729683486894,1.73119353,2580.6,2580.5,0.19389915]
[1729683487092,1.73119353,2580.6,2580.5,0.43627234]
[1729683489047,1.73119353,2580.9,2580.6,0.7639]
[1729683489339,1.73119353,2580.9,2580.7,0.43627234]
[1729683489542,1.73119353,2580.9,2580.8,0.43627234]
[1729683490496,1.73119353,2580.9,2580.8,0.43625041]
[1729683490698,7.74815,2581.3,2580.8,0.43625041]
[1729683490952,1.73119353,2581.0,2580.9,0.19389915]
[1729683492261,1.73119353,2581.0,2580.9,0.19387516]
[1729683493119,1.73119353,2581.0,2580.6,0.7639]
[1729683493470,1.73119353,2580.9,2580.7,0.43622184]
[1729683493619,1.73119353,2580.9,2580.8,0.43622184]
[1729683493819,1.73119353,2581.0,2580.8,0.43622184]
[1729683494066,1.73119353,2581.0,2580.9,0.1938764]
[1729683500690,1.73119353,2581.0,2580.6,0.7639]
[1729683500844,3.87432,2581.1,2580.7,0.24234814]
[1729683500845,1.73119353,2580.9,2580.7,0.24234814]
[1729683501044,1.73119353,2580.9,2580.6,5.7730858]
[1729683501045,1.73119353,2580.9,2580.8,0.19387757]
[1729683501253,1.73119353,2580.9,2580.8,0.43622595]
[1729683502855,1.73119353,2581.0,2580.8,0.43622595]
[1729683503055,3.8742,2581.2,2580.9,0.19387757]
[1729683503258,1.73119353,2581.0,2580.7,0.242349]
[1729683503458,1.73119353,2580.9,2580.8,0.19387861]
[1729683504269,1.73119353,2580.9,2580.8,0.19387865]
[1729683506099,1.73119353,2580.9,2580.8,0.43622859]
[1729683507752,1.73119353,2580.9,2580.8,0.43622852]
[1729683509195,1.73119353,2581.2,2580.9,3.87458]
[1729683509396,1.73119353,2581.2,2581.0,0.19387934]
[1729683509562,3.92477,2581.4,2581.1,0.19387934]
[1729683509760,3.92477,2581.4,2581.2,0.19387934]
[1729683510060,5.65557353,2581.6,2581.1,0.7794]
[1729683510259,1.73119353,2581.3,2581.2,0.19385849]
[1729683511398,1.73119353,2581.3,2581.2,0.19384847]
[1729683511904,0.0508,2581.8,2581.2,0.19384847]
[1729683512203,1.73119353,2581.4,2581.3,0.19384847]
[1729683514865,1.73119353,2581.4,2581.3,0.19383953]
[1729683515064,1.73119353,2581.5,2581.3,4.06782953]
[1729683515290,0.0508,2581.8,2581.4,0.8306]
[1729683515291,3.92408,2581.8,2581.4,0.8306]
[1729683515503,4.26265927,2581.9,2581.4,0.8306]
[1729683516212,1.73119353,2581.6,2581.4,0.8306]
[1729683516766,1.73119353,2581.7,2581.4,4.70445]
[1729683516972,1.73119353,2581.7,2581.5,0.19382369]
[1729683517167,1.73119353,2581.7,2581.4,5.562319]
[1729683517477,1.73119353,2581.6,2581.5,0.193819]
[1729683518602,1.73119353,2581.6,2581.5,0.19382422]
[1729683519002,1.73119353,2581.6,2581.4,0.8306]
[1729683519171,1.73119353,2581.5,2581.4,0.8306]
[1729683519568,1.73119353,2581.5,2581.4,0.1938317]
[1729683519821,0.0508,2581.4,2581.0,0.7502]
[1729683520114,1.73119353,2581.1,2581.0,0.7502]
[1729683520313,1.73119353,2581.1,2581.0,0.94405834]
[1729683522208,1.73119353,2581.1,2581.0,0.7502]
[1729683522412,1.73119353,2581.1,2581.0,0.94406141]
[1729683523006,1.73119353,2581.2,2581.0,0.94406141]
[1729683523167,1.73119353,2581.2,2581.0,0.7502]
[1729683523371,1.73119353,2581.1,2581.0,0.7502]
[1729683523575,3.87387,2581.4,2581.0,0.94406022]
[1729683523576,1.73119353,2581.2,2581.0,0.94406022]
[1729683523774,1.73119353,2581.1,2581.0,0.7502]
[1729683524000,1.73119353,2581.1,2581.0,0.94405965]
[1729683525199,1.73119353,2581.2,2581.0,0.94405965]
[1729683525404,1.73119353,2581.2,2581.0,0.7502]
[1729683525578,1.73119353,2581.2,2581.1,0.19385593]
[1729683525909,1.73119353,2581.2,2581.1,0.19385361]
[1729683526217,1.73119353,2581.3,2581.1,0.19385361]
[1729683526418,1.73119353,2581.3,2581.0,4.62457]
[1729683526628,1.73119353,2581.3,2581.1,0.1938472]
[1729683526799,1.73119353,2581.3,2581.0,4.62453]
[1729683526993,1.73119353,2581.4,2581.1,4.06807675]
[1729683527214,1.73119353,2581.4,2581.3,0.7734]
[1729683527400,1.73119353,2581.5,2581.3,0.7734]
[1729683527801,1.73119353,2581.4,2581.3,0.7734]
[1729683529186,1.73119353,2581.4,2581.1,4.63923]
[1729683529390,1.73119353,2581.4,2581.2,0.19384604]
[1729683529622,1.73119353,2581.3,2581.1,0.765]
[1729683529823,3.87372,2581.5,2581.1,0.765]
[1729683529824,1.73119353,2581.2,2581.1,0.765]
[1729683530027,1.73119353,2581.3,2581.1,0.19384472]
[1729683530324,1.73119353,2581.3,2581.2,0.19384999]
[1729683532639,1.73119353,2581.3,2581.0,3.87446]
[1729683532842,1.73119353,2581.3,2581.1,0.19385543]
[1729683533126,1.73119353,2581.3,2581.2,0.19385543]
[1729683536207,1.73119353,2581.3,2581.0,3.87446]
[1729683536415,1.73119353,2581.2,2581.0,3.87446]
[1729683536626,1.73119353,2581.2,2581.1,0.19385099]
[1729683536826,1.73119353,2581.3,2581.1,0.19385099]
[1729683537033,1.73119353,2581.3,2581.2,0.19385099]
[1729683537350,1.78199353,2581.3,2581.2,0.19385099]
[1729683537497,3.87461,2580.9,2580.3,0.07017073]
[1729683537699,1.73119353,2580.4,2580.0,2.0881767]
[1729683538001,3.87522,2580.5,2580.1,0.19393086]
[1729683538195,0.0508,2580.4,2580.2,0.19393086]
[1729683538409,0.0508,2580.4,2580.0,2.0881767]
[1729683538721,1.73119353,2580.1,2580.0,2.0881767]
[1729683538929,1.73119353,2580.1,2580.0,2.28210864]
[1729683540015,1.73119353,2580.1,2580.0,2.28211253]
[1729683540414,1.73119353,2580.1,2580.0,2.28211208]
[1729683541735,1.73119353,2580.2,2580.0,2.0881767]
[1729683541940,1.73119353,2580.3,2580.0,2.2821056]
[1729683542144,1.73119353,2580.3,2580.0,2.0881767]
[1729683542367,1.78199353,2580.4,2580.0,5.9641067]
[1729683542585,1.73119353,2580.3,2580.0,6.15803407]
[1729683542858,1.73119353,2580.2,2580.0,2.0881767]
[1729683543156,1.73119353,2580.1,2580.0,2.0881767]
[1729683544013,5.65780353,2580.1,2580.0,2.0881767]
[1729683546154,1.73119353,2580.2,2580.0,2.0881767]
[1729683546522,1.73119353,2580.1,2580.0,2.0881767]
[1729683546716,1.73119353,2580.2,2580.0,2.0881767]
[1729683547413,0.0508,2580.3,2580.0,2.0881767]
[1729683547414,1.73119353,2580.1,2580.0,2.0881767]
[1729683550157,5.60700353,2580.1,2580.0,2.0881767]
[1729683551150,5.65780353,2580.1,2580.0,2.0881767]
[1729683551867,7.38899706,2580.1,2580.0,2.0881767]
[1729683552216,3.92661,2580.1,2580.0,2.0881767]
[1729683553119,7.44556227,2580.1,2580.0,2.0881767]
[1729683556721,3.92661,2580.1,2580.0,2.0881767]
[1729683556925,7.44556227,2580.1,2580.0,2.0881767]
[1729683558166,3.92661,2580.1,2580.0,2.0881767]
[1729683558365,0.0508,2580.1,2580.0,2.0881767]
[1729683558661,3.92661,2580.1,2580.0,2.0881767]
[1729683559535,7.44556227,2580.1,2580.0,2.0881767]
[1729683559975,3.92661,2580.1,2580.0,2.0881767]
[1729683560126,7.44556227,2580.1,2580.0,2.0881767]
[1729683563170,7.39476227,2580.1,2580.0,2.0881767]
[1729683563338,3.87581,2580.1,2580.0,2.0881767]
[1729683564290,3.87544,2580.4,2580.0,2.0881767]
[1729683564497,7.75033,2580.6,2580.2,0.7929]
[1729683564643,3.87506,2580.6,2580.2,0.7929]
[1729683565075,3.87535,2580.5,2580.2,0.7929]
[1729683565540,3.87539,2580.4,2580.2,0.7929]
[1729683568670,3.87525,2580.5,2580.2,0.7929]
[1729683570778,7.39420227,2580.5,2580.2,0.7929]
[1729683572594,3.87508,2580.6,2580.2,0.7929]
[1729683572891,7.39387227,2580.7,2580.3,4.729883]
[1729683573090,11.26893227,2580.7,2580.3,0.854443]
[1729683573596,7.39387227,2580.7,2580.3,0.854443]
[1729683573792,3.87513,2580.6,2580.3,0.854443]
[1729683574019,3.87513,2580.6,2580.2,4.66854]
[1729683574319,1.73184954,2580.3,2580.2,0.7929]
[1729683574592,1.73184954,2580.3,2580.2,0.98682387]
[1729683575008,3.8753,2580.5,2580.2,0.98682387]
[1729683575172,1.73184954,2580.3,2580.2,0.7929]
[1729683575370,1.73184954,2580.4,2580.2,1.66250281]
[1729683575574,1.73184954,2580.3,2580.2,5.34424067]
[1729683575773,1.73184954,2580.3,2580.2,5.5381605]
[1729683578570,1.73184954,2580.3,2580.2,5.34424067]
[1729683578769,1.73184954,2580.3,2580.2,5.53815911]
[1729683579982,1.73184954,2580.3,2580.2,5.34424067]
[1729683580183,1.73184954,2580.3,2580.2,5.5381596]
[1729683580514,1.73184954,2580.3,2580.2,5.34424067]
[1729683584821,1.73184954,2580.3,2580.2,5.53815943]
[1729683587423,1.73184954,2580.3,2580.2,4.86247876]
[1729683587982,1.73184954,2580.3,2580.2,0.7929]
[1729683588404,1.73184954,2580.3,2580.2,4.86248323]
[1729683588718,1.73184954,2580.3,2580.2,4.86247995]
[1729683588937,3.87498,2580.7,2580.2,4.86246995]
[1729683589141,3.87506,2580.6,2580.3,0.19392597]
[1729683589326,3.87506,2580.6,2580.2,4.66855]
[1729683589496,3.87506,2580.6,2580.3,0.19391832]
[1729683589701,3.87506,2580.6,2580.2,4.66855]
[1729683589941,3.87506,2580.6,2580.3,0.19391877]
[1729683590260,1.73184954,2580.4,2580.2,4.66855]
[1729683590404,1.73184954,2580.3,2580.2,4.66855]
[1729683590598,1.73184954,2580.3,2580.2,4.86246988]
[1729683590801,3.46369908,2580.3,2580.2,0.19391988]
[1729683591002,1.73184954,2580.3,2580.1,3.87578]
[1729683591246,0.0508,2580.4,2580.0,2.0881767]
[1729683591247,1.73184954,2580.2,2580.0,2.0881767]
[1729683591403,1.73184954,2580.1,2580.0,5.9641167]
[1729683591603,1.73184954,2580.1,2580.0,6.15805104]
[1729683591829,1.73184954,2580.1,2580.0,6.15805102]
[1729683592030,3.87528,2580.5,2580.0,6.15805102]
[1729683592031,3.87528,2580.5,2580.1,3.87572]
[1729683592245,1.73184954,2580.2,2580.1,3.87572]
[1729683592550,1.73184954,2580.2,2580.1,4.06965583]
[1729683593422,1.73184954,2580.2,2580.1,4.31206667]
[1729683593620,1.73184954,2580.2,2580.1,0.43634667]
[1729683594041,1.73184954,2580.2,2580.1,0.43634691]
[1729683598960,1.73184954,2580.2,2580.0,6.7675367]
[1729683599160,1.73184954,2580.2,2580.1,0.43632897]
[1729683601820,1.73184954,2580.3,2580.1,0.43634273]
[1729683602019,1.73184954,2580.3,2580.2,0.1939301]
[1729683602460,1.73184954,2580.3,2580.2,0.1939304]
[1729683608966,1.73184954,2580.3,2580.2,0.19393178]
[1729683611575,3.87527,2580.5,2580.2,0.19393178]
[1729683611739,3.87491,2580.7,2580.3,4.06944178]
[1729683612111,1.73184954,2580.9,2580.6,3.87506]
[1729683612261,0.0508,2581.3,2580.8,3.87476]
[1729683612772,1.73184954,2581.4,2581.0,7.74875]
[1729683612977,1.73184954,2581.4,2581.1,0.19393178]
[1729683613175,5.60570954,2581.4,2580.9,4.11692094]
[1729683613386,1.73184954,2581.3,2581.0,4.06831197]
[1729683613684,1.78264954,2581.1,2580.9,0.24232068]
[1729683613885,3.87478,2580.8,2580.6,0.19388764]
[1729683614096,3.87478,2580.8,2580.3,4.69863]
[1729683614384,1.73184954,2580.6,2580.3,5.7592498]
[1729683614560,1.73184954,2580.7,2580.3,5.7592498]
[1729683615069,1.73184954,2580.7,2580.4,3.87536]
[1729683615379,1.73184954,2580.7,2580.5,0.19389554]
[1729683615579,1.73184954,2580.7,2580.6,0.19389554]
[1729683616143,1.73184954,2580.7,2580.6,0.19389369]
[1729683616343,3.87472,2580.9,2580.6,0.19389369]
[1729683616344,3.87471,2580.9,2580.6,0.19389369]
[1729683616689,7.74941,2580.9,2580.4,4.11764464]
[1729683616980,7.74941,2580.9,2580.5,0.19389207]
[1729683617183,7.74941,2580.9,2580.6,0.19389207]
[1729683617384,7.74941,2580.9,2580.4,4.11764464]
[1729683617562,7.74941,2580.9,2580.5,0.19389203]
[1729683617747,7.74941,2580.9,2580.6,0.19389203]
[1729683617954,7.74941,2580.9,2580.4,4.11764464]
[1729683618150,7.74941,2580.9,2580.5,0.19389196]
[1729683618380,7.74941,2580.9,2580.6,0.19389196]
[1729683618654,7.74941,2580.9,2580.4,4.11764464]
[1729683618847,7.74941,2580.9,2580.5,0.19389184]
[1729683619051,7.74941,2580.9,2580.6,0.19389184]
[1729683619293,3.8747,2580.9,2580.4,7.99293464]
[1729683619500,3.8747,2580.9,2580.5,0.19389176]
[1729683619655,3.8747,2580.9,2580.4,3.87528]
[1729683619849,3.8747,2580.9,2580.3,5.7593098]
[1729683620054,3.87497,2580.7,2580.4,0.19389555]
[1729683620312,3.87497,2580.7,2580.3,4.69869]
[1729683620592,3.87476,2580.9,2580.4,4.06918943]
[1729683620892,3.87484,2580.8,2580.4,3.87528]
[1729683621100,3.87484,2580.8,2580.3,4.69869]
[1729683621253,3.51660328,2580.5,2580.4,0.19390521]
[1729683621453,3.87521,2580.5,2580.1,4.68969]
[1729683621794,3.87521,2580.5,2580.2,0.19391933]
[1729683621952,3.87521,2580.5,2580.1,4.68969]
[1729683622160,3.87521,2580.5,2580.2,0.19392322]
[1729683622355,7.44235328,2580.7,2580.1,4.68969]
[1729683622557,3.87551,2580.4,2580.2,0.19392277]
[1729683622787,3.87551,2580.4,2580.1,0.8139]
[1729683623304,3.87516,2580.6,2580.2,0.19391874]
[1729683623495,3.87516,2580.6,2580.1,4.68961]
[1729683623857,0.0508,2580.7,2580.2,0.19390961]
[1729683624204,7.75032,2580.6,2580.1,4.68961]
[1729683624383,7.75032,2580.6,2580.2,0.19391596]
[1729683624699,7.75032,2580.6,2580.1,4.93200415]
[1729683624885,7.75032,2580.6,2580.2,0.19391596]
[1729683624886,3.87524,2580.5,2580.2,0.19391596]
[1729683625099,3.87524,2580.5,2580.1,4.68961]
[1729683625403,3.87524,2580.5,2580.2,0.1939198]
[1729683625605,3.87524,2580.5,2580.1,4.68961]
[1729683625771,7.39179328,2580.6,2580.2,0.19392087]
[1729683625971,7.39179328,2580.6,2580.1,0.8139]
[1729683625972,3.87532,2580.5,2580.1,0.8139]
[1729683627338,3.87538,2580.4,2580.1,0.8139]
[1729683627501,3.87538,2580.4,2580.0,2.0881767]
[1729683627502,7.39228328,2580.2,2580.0,2.0881767]
[1729683627701,3.87581,2580.1,2580.0,2.0881767]
[1729683627920,7.39228328,2580.2,2580.0,2.0881767]
[1729683628094,3.87568,2580.2,2580.0,2.0881767]
[1729683628596,3.92638,2580.3,2580.0,2.0881767]
[1729683628992,3.87566,2580.2,2580.0,2.0881767]
[1729683631242,3.8756,2580.3,2580.1,0.7919]
[1729683631535,3.87537,2580.4,2580.1,0.7919]
[1729683633436,3.51660328,2580.5,2580.0,2.0881767]
[1729683633740,3.87559,2580.3,2580.1,0.19393082]
[1729683633948,3.87559,2580.3,2580.0,2.0881767]
[1729683634098,3.87559,2580.3,2580.1,0.19393085]
[1729683634293,3.87559,2580.3,2580.0,2.0881767]
[1729683634627,3.87536,2580.4,2580.1,0.19393095]
[1729683634628,3.87567,2580.2,2580.1,0.19393095]
[1729683634939,3.87567,2580.2,2580.0,2.0881767]
[1729683635308,3.87581,2580.1,2580.0,2.0881767]
[1729683637943,0.0508,2580.3,2580.0,2.0881767]
[1729683637944,3.87552,2580.3,2580.0,2.0881767]
[1729683638443,3.87552,2580.3,2580.1,0.8161]
[1729683638798,3.87566,2580.2,2580.1,0.8161]
[1729683640014,3.87581,2580.1,2580.0,2.0881767]
[1729683640614,7.39241328,2580.1,2580.0,2.0881767]
[1729683640809,3.87581,2580.1,2580.0,2.0881767]
[1729683641244,7.39241328,2580.1,2580.0,2.0881767]
[1729683641852,3.87581,2580.1,2580.0,2.0881767]
[1729683645035,3.87558,2580.3,2580.0,2.0881767]
[1729683645328,3.87533,2580.5,2580.0,2.0881767]
[1729683645329,3.92613,2580.5,2580.0,2.0881767]
[1729683645472,0.65727271,2581.2,2580.2,0.7506]
[1729683645672,3.87479,2580.8,2580.3,4.82002045]
[1729683646018,3.87454,2581.0,2580.5,3.8752]
[1729683646197,4.53144271,2581.2,2580.6,4.69932]
[1729683646518,3.87447,2581.0,2580.6,0.8244]
[1729683646871,3.51660328,2581.1,2580.6,0.8244]
[1729683647217,4.53151271,2581.2,2580.7,3.87484]
[1729683647521,3.87438,2581.1,2580.6,4.69946]
[1729683647865,8.40578271,2581.2,2580.7,3.8749]
[1729683648115,3.87433,2581.1,2580.7,3.8749]
[1729683648411,4.53151271,2581.2,2580.8,3.87475]
[1729683648412,4.48063271,2581.2,2580.8,3.87475]
[1729683648619,4.48063271,2581.2,2580.7,3.87484]
[1729683648620,3.87417,2581.2,2580.7,3.87484]
[1729683648769,3.87417,2581.2,2580.7,4.4392048]
[1729683648770,4.48060697,2581.2,2580.7,4.4392048]
[1729683648973,3.87417,2581.2,2580.8,4.06862739]
[1729683649214,3.87417,2581.2,2580.8,3.87475]
[1729683649522,7.74841,2581.2,2580.7,4.4391848]
[1729683649670,3.87417,2581.2,2580.8,0.19387528]
[1729683649877,3.87432,2581.1,2580.7,3.87482]
[1729683650183,3.87432,2581.1,2580.4,0.24234673]
[1729683650184,3.51660328,2580.9,2580.4,0.7526]
[1729683650395,3.87493,2580.7,2580.4,0.7526]
[1729683650594,0.0508,2581.0,2580.4,4.62796]
[1729683650595,3.87478,2580.8,2580.4,4.62796]
[1729683651174,3.87478,2580.8,2580.4,0.7526]
[1729683651519,3.87513,2580.6,2580.4,0.7526]
[1729683651702,3.87513,2580.6,2580.2,0.7526]
[1729683652010,3.87543,2580.4,2580.0,2.8407767]
[1729683652320,3.87543,2580.4,2580.1,0.19391877]
[1729683652612,3.87543,2580.4,2580.0,3.90008137]
[1729683652916,3.87569,2580.2,2580.0,2.8407767]
[1729683653073,7.39218328,2580.3,2580.0,2.0881767]
[1729683653275,3.87573,2580.2,2580.0,2.0881767]
[1729683654218,7.39181328,2580.5,2580.1,0.7639]
[1729683654392,3.87508,2580.6,2580.1,4.63962]
[1729683654801,3.87498,2580.7,2580.3,3.87547]
[1729683656219,3.87498,2580.7,2580.4,0.19390823]
[1729683656425,3.87498,2580.7,2580.3,3.87547]
[1729683656426,3.87498,2580.7,2580.2,3.87556]
[1729683656722,3.87512,2580.6,2580.3,0.19391352]